Cogmind - Beta 15 @@@ ROGUE MODE // 2025.06.27 @ 17:43:02 Player: Skysub Result: Destroyed by G-73 Enforcer with Heavy Laser Performance ------------- Evolutions (6) 3000 Regions Visited (11) 2200 Robots Destroyed (88) 440 Value Destroyed (3177) 3177 Prototype IDs (21) 420 Alien Tech Used (0) 0 Bonus (4460) 4460 TOTAL SCORE: 13697 Bonus ------- Follower Combat Kills 2774 Network Hubs Disabled 200 Registered with UFD 300 Met Optimus in HQ 500 Built Enhanced Grunts 300 Met R17 at Cetus 500 Friendly Fire -114 Cogmind --------- Core Integrity 0/1150 Matter 218/300 Energy 38/100 System Corruption 7% Temperature Cool (0) Movement Core (50) Location -4/Factory Parts ------- > --- POWER (2) -------- (None) > --- PROPULSION (5) --- (None) > --- UTILITY (10) ----- Advanced Signal Interpreter Experimental Signal Interpreter Improved Targeting Computer Improved System Shield > --- WEAPON (2) ------- (None) > --- INVENTORY (5) ---- Structural Scanner Advanced ECM Suite Improved Reaction Control System Coil Gun Peak State ------------ > --- POWER ------------ Antimatter Reactor Quantum Reactor > --- PROPULSION ------- Centrium Heavy Treads Centrium Heavy Treads Centrium Wheel > --- UTILITY ---------- Medium Storage Unit Triangulator Advanced Sensor Array Advanced Signal Interpreter Advanced Melee Analysis Suite Advanced Transmission Jammer Centrium Medium Armor Plating Centrium Medium Armor Plating Improved Hacking Suite Improved System Shield > --- WEAPON ----------- Companion Sword > --- INVENTORY -------- Q-thruster Advanced Weight Redist. System Structural Scanner Advanced ECM Suite Improved Reaction Control System Hacking Suite Improved System Shield A0-MCA's Component Scanner Advanced KE Penetrator Mini Grenade Launcher [Rating: 125] Favorites ----------- Power Makeshift Power Source Engine Makeshift Power Source Power Core Micro Nuclear Core Reactor Quantum Reactor Propulsion Light Treads Treads Light Treads Leg Carbon-fiber Leg Wheel Centrium Wheel Hover Unit Gravmag System Flight Unit Cooled Cesium-ion Thruster Utility Large Storage Unit Device Structural Scanner Storage Large Storage Unit Processor Advanced Melee Analysis Suite Hackware Makeshift System Shield Protection Centrium Medium Armor Plating Weapon Companion Sword Energy Gun Subdweller Laser Ballistic Gun Subdweller Machine Gun Launcher Mini Grenade Launcher Special Weapon Mining Laser Slashing Weapon Companion Sword Build | -11 -10 -10 -9 -9 -6 -5 -5 -5 -5 -5 -4 ------- Run | Yrd Mat Sub Rec Scr Fac Fac Ext Cet Arc Hub Fac Slots Evolved 12 | . . . . . 8 2 . . . . 2 Power 1 | . . . . . 1 . . . . . . Propulsion 3 | . . . . . 2 1 . . . . . Utility 8 | . . . . . 5 1 . . . . 2 Weapon . | . . . . . . . . . . . . Parts Attached 118 | 7 4 8 2 6 35 4 15 5 2 1 29 Power 15 | 1 . 1 . 1 5 . 2 1 . . 4 Engine 9 | 1 . 1 . . 3 . 2 . . . 2 Core 4 | . . . . 1 2 . . . . . 1 Reactor 2 | . . . . . . . . 1 . . 1 Propulsion 38 | 2 . 3 2 2 13 1 6 2 . . 7 Treads 8 | 2 . 2 1 1 . . . 2 . . . Leg 12 | . . . . . 4 . 6 . . . 2 Wheel 4 | . . 1 1 . 2 . . . . . . Hover 2 | . . . . . 2 . . . . . . Flight 12 | . . . . 1 5 1 . . . . 5 Utility 50 | 2 4 . . 1 17 3 4 2 1 1 15 Device 20 | 1 1 . . . 6 1 . . . . 11 Storage 5 | 1 2 . . 1 1 . . . . . . Processor 5 | . . . . . . 2 . . . . 3 Hackware 5 | . . . . . 2 . . . 1 1 1 Protection 15 | . 1 . . . 8 . 4 2 . . . Artifact . | . . . . . . . . . . . . Weapon 15 | 2 . 4 . 2 . . 3 . 1 . 3 Energy Gun 2 | 1 . 1 . . . . . . . . . Energy Cannon . | . . . . . . . . . . . . Ballistic Gun 8 | 1 . 2 . 1 . . . . 1 . 3 Ballistic Cannon . | . . . . . . . . . . . . Launcher 1 | . . . . . . . 1 . . . . Special Weapon 3 | . . 1 . . . . 2 . . . . Impact Weapon . | . . . . . . . . . . . . Slashing Weapon 1 | . . . . 1 . . . . . . . Piercing Weapon . | . . . . . . . . . . . . Special Melee Weapon . | . . . . . . . . . . . . Unidentified Prototypes 9 | . . . . 1 3 . . 2 1 . 2 Corrupted Parts 1 | . . . . . . . . 1 . . . System Corruption 10 | . . . . . . . . 10 . . . Parts Lost 71 | . . 7 . . 13 1 14 2 1 1 32 Power 13 | . . 1 . . 4 . 2 1 . . 5 Propulsion 20 | . . 3 . . 3 1 4 . . . 9 Utility 29 | . . 1 . . 6 . 6 1 1 1 13 Weapon 9 | . . 2 . . . . 2 . . . 5 Highest Loss Streak 19 | . . 2 . . 5 1 4 2 1 1 19 To Critical Strikes 3 | . . 1 . . . . 1 . . . 1 Average Backups 8 | 1 5 10 11 5 13 10 8 8 8 8 9 Power . | . 1 . . . . . . . . . . Propulsion 1 | . 1 3 2 . 2 . . 1 . . . Utility 4 | . 1 3 4 2 8 8 6 6 6 6 6 Weapon 2 | . 1 3 4 1 1 1 . 1 2 2 1 Tool/Special . | . . . . . . . . . . . . Unused Backups 27 | . . 3 . 14 6 . 1 . . . 3 Power 1 | . . 1 . . . . . . . . . Propulsion 4 | . . 1 . 2 1 . . . . . . Utility 16 | . . . . 8 4 . 1 . . . 3 Weapon 5 | . . 1 . 4 . . . . . . . Tool/Special 1 | . . . . . 1 . . . . . . Average Slot Usage (%) 81 | . 100 91 99 72 63 88 84 86 82 80 76 Engine 7 | . 14 7 14 11 3 . 2 5 5 5 1 Core 1 | . . . . 2 3 11 7 . . . . Treads 15 | . 28 25 21 24 . . . 3 11 11 8 Leg 1 | . . . . . 5 . 5 15 . . . Wheel 2 | . . . 6 . 1 5 5 5 5 5 4 Flight 2 | . . . . 2 5 18 9 . . . . Device 11 | . 2 10 14 12 12 16 8 11 11 9 15 Storage 10 | . 14 14 14 13 5 5 5 5 5 5 4 Processor 3 | . . . . . . 9 11 11 11 11 10 Hackware 4 | . . . . . 11 11 8 5 5 9 10 Protection 4 | . 11 3 . . 5 1 9 10 11 6 7 Energy Gun 4 | . 14 12 14 1 . . . . . . . Ballistic Gun 4 | . 14 14 14 2 . . . . . . . Slashing Weapon 2 | . . . . 1 5 5 5 5 5 5 4 Peak Build Rating 125 | 9 9 17 18 28 75 72 75 101 113 106 125 Average Rating 41 | 5 7 12 17 12 61 66 63 81 104 102 109 On Entrance 48 | . 9 7 16 18 25 62 63 71 101 106 98 Naked Turns 24 | . . . . 24 . . . . . . . Heaviest Build 69 | 14 31 33 33 35 55 39 46 59 59 59 69 Greatest Support 169 | 40 40 40 40 40 66 32 94 169 169 169 169 Greatest Overweight (x) 6 | . . 1 1 6 2 1 1 . . . 5 Average Overweight (x) . | . . . . . . . . . . . . Largest Inventory Capacity 15 | 8 15 15 15 15 15 10 10 10 10 10 10 Average Capacity 13 | 7 12 15 15 14 14 10 10 10 10 10 9 Most Carried 15 | 3 7 15 15 15 15 10 10 10 10 9 10 Average Carried 9 | 1 5 13 14 6 13 10 8 9 9 9 9 Final Capacity 15 | 8 15 15 15 15 10 10 10 10 10 10 5 Final Carried 15 | 3 7 15 15 15 10 10 8 10 9 9 4 Class Distribution -------------------- 45% | Mutant 22% | Scavenger-Mutant 17% | Hacker-Mutant 12% | Commander-Mutant Dominant Class ---------------- Mutant | -10/Materials Mutant | -10/Subcaves Commander-Mutant | -9/Recycling Mutant | -9/Scraptown Hacker-Mutant | -6/Factory Hacker-Mutant | -5/Factory Scavenger-Mutant | -5/Extension Commander-Mutant | -5/Cetus Commander-Mutant | -5/Archives Commander-Mutant | -5/Hub_04(d) Scavenger-Mutant | -4/Factory Resources | -11 -10 -10 -9 -9 -6 -5 -5 -5 -5 -5 -4 ----------- Run | Yrd Mat Sub Rec Scr Fac Fac Ext Cet Arc Hub Fac Matter Collected 2645 | 233 92 328 15 . 1081 60 310 130 63 5 328 Remotely . | . . . . . . . . . . . . Salvage Created 4231 | 29 276 381 66 . 1497 61 857 . 107 . 957 Parts 243 | 4 16 33 2 . 82 7 43 . 7 . 49 Haulers Intercepted . | . . . . . . . . . . . . Recyclers Shooed 3 | . 1 . . . 2 . . . . . . Parts Field Recycled . | . . . . . . . . . . . . Retrieved Matter . | . . . . . . . . . . . . Parts Self-Destructed 16 | . . 16 . . . . . . . . . Prevented . | . . . . . . . . . . . . Kills | -11 -10 -10 -9 -9 -6 -5 -5 -5 -5 -5 -4 ------- Run | Yrd Mat Sub Rec Scr Fac Fac Ext Cet Arc Hub Fac Combat Hostiles Destroyed 59 | . 4 11 1 . 19 . 9 . . . 15 Melee 36 | . . . . . 19 . 9 . . . 8 Guns 20 | . 4 11 1 . . . . . . . 4 AOE 3 | . . . . . . . . . . . 3 Classes Destroyed 14 | 1 4 3 . . 3 1 1 . 1 . . Worker 6 | . 1 . 1 . 4 . . . . . . Builder 7 | . 1 . . . . 1 3 . . . 2 Tunneler 2 | 2 . . . . . . . . . . . Recycler 8 | . 1 . . . 3 . 2 . . . 2 Operator 3 | . . . . . . . . . 3 . . Turret 2 | . . 2 . . . . . . . . . Watcher 1 | . . . . . . 1 . . . . . Swarmer 14 | . . 4 . . 3 . . . . . 7 Grunt 18 | . 4 . 1 . 7 . 5 . . . 1 Duelist 3 | . . . . . 3 . . . . . . Sentry 6 | . . . . . 3 . 3 . . . . Hunter 5 | . . . . . . . 1 . . . 4 Programmer 6 | . . . . . 3 . . . . . 3 Subdweller 7 | . . 7 . . . . . . . . . Best Kill Streak 5 | 2 3 4 2 . 4 1 2 . 2 . 5 Combat Bots Only 5 | . 2 4 1 . 4 . 2 . . . 5 Max Kills in Single Turn 2 | 1 1 1 1 . 1 1 1 . 1 . 2 Gunslinging . | . . . . . . . . . . . . Exploded 2 | . . . . . . . . . . . 2 Melee 1 | . . . . . 1 . 1 . . . 1 Uniques/NPCs Destroyed . | . . . . . . . . . . . . Combat | -11 -10 -10 -9 -9 -6 -5 -5 -5 -5 -5 -4 -------- Run | Yrd Mat Sub Rec Scr Fac Fac Ext Cet Arc Hub Fac Hostile Shots Fired 960 | . 17 139 8 . 278 2 123 26 6 28 333 Missed 295 | . 4 60 . . 67 1 37 13 1 7 105 Hits 665 | . 13 79 8 . 211 1 86 13 5 21 228 Melee 27 | . . . . . 27 . . . . . . Projectile 638 | . 13 79 8 . 184 1 86 13 5 21 228 AOE 3 | . . 2 . . . . . . . . 1 Critical Strikes 28 | . . 3 . . 7 . 7 2 . . 9 Actively Blocked 1 | . . . . . 1 . . . . . . Damage Taken 12347 | . 163 1073 112 . 3744 70 1900 326 132 521 4306 Core 2442 | . 45 112 27 . 673 . 372 15 . 40 1158 Absorbed by Shields 308 | . . . . . . . 248 60 . . . Redirected to Shielding 102 | . . . . . 65 . 37 . . . . Regen/Repaired (Parts) 26 | . . . . . . 26 . . . . . Core Remaining (%) 50 | 100 . . . 26 20 . . . . 57 . Volleys Fired 135 | 5 18 70 7 . . . 15 6 . . 14 Largest 2 | 2 2 2 2 . . . 1 1 . . 2 Hottest 100 | 60 60 100 90 . . . 30 30 . . 65 Shots Fired 230 | 10 36 127 14 . . . 15 6 . . 22 Gun 199 | 10 36 118 14 . . . . . . . 21 Cannon . | . . . . . . . . . . . . Launcher 10 | . . . . . . . 3 6 . . 1 Special 21 | . . 9 . . . . 12 . . . . Kinetic 111 | 5 18 60 7 . . . . . . . 21 Thermal 97 | 5 18 67 7 . . . . . . . . Explosive 10 | . . . . . . . 3 6 . . 1 Electromagnetic . | . . . . . . . . . . . . Robot Hit Streak 17 | 2 11 17 5 . . . 6 9 . . 14 Robot Miss Streak 5 | 5 3 5 1 . . . 1 . . . 3 Penetration Max 1 | . . . . . . . . . . . 1 Secondary Targets 2 | . 1 1 . . . . . . . . . Max Gunslinging Chain 1 | . 1 1 . . . . . . . . . Shots Hit Robots 344 | 3 26 78 10 . 90 5 66 4 3 . 59 Core Hits 148 | 2 10 24 3 . 38 1 31 16 2 . 21 Critical Kills 2 | . . 1 . . . . . . . . 1 Critical Parts Destroyed 5 | . . . . . . . . . . . 5 Critical Strikes 10 | . . 2 . . 2 . . . . . 6 Destroy 8 | . . 2 . . . . . . . . 6 Melee Attacks 275 | . . . . . 125 11 64 . 3 4 68 Impact . | . . . . . . . . . . . . Slashing 275 | . . . . . 125 11 64 . 3 4 68 Piercing . | . . . . . . . . . . . . Sneak Attacks 23 | . . . . . 9 2 5 . 3 . 4 Combat Hostiles 2 | . . . . . . . 1 . . . 1 Follow-up Attacks 4 | . . . . . 4 . . . . . . Damage Inflicted 12432 | 32 348 1253 309 . 3757 291 3095 446 315 . 2586 Guns 2169 | 30 311 1253 231 . . . . . . . 344 Cannons . | . . . . . . . . . . . . Explosions 1195 | . . . . . . . 562 446 . . 187 Melee 8951 | . . . . . 3757 291 2533 . 315 . 2055 Ramming 117 | 2 37 . 78 . . . . . . . . Kinetic 1322 | 20 170 681 107 . . . . . . . 344 Thermal 847 | 10 141 572 124 . . . . . . . . Explosive 1195 | . . . . . . . 562 446 . . 187 Electromagnetic . | . . . . . . . . . . . . Impact . | . . . . . . . . . . . . Slashing 8951 | . . . . . 3757 291 2533 . 315 . 2055 Piercing . | . . . . . . . . . . . . Highest Corruption 11 | . . . . . 6 . . 10 10 11 9 Average Corruption 7 | . . . . . 5 . . 10 10 10 6 Corruption Purged 3 | . . . . . . . . . . . 3 Corruption Blocked . | . . . . . . . . . . . . Effects 46 | . . . . . 12 . . 8 5 6 15 Message Errors 11 | . . . . . 5 . . 2 1 . 3 Matter Fused 12 | . . . . . 3 . . 4 1 . 4 Heat Flow Errors 6 | . . . . . 1 . . . 1 1 3 Energy Discharges 7 | . . . . . 2 . . 2 . 2 1 Parts Rejected 1 | . . . . . . . . . . . 1 Parts Fused 1 | . . . . . . . . . . . 1 Data Loss (minor) 6 | . . . . . 1 . . . 1 3 1 Data Loss (major) 2 | . . . . . . . . . 1 . 1 Overload Shots . | . . . . . . . . . . . . Overflow Damage 803 | . . . . . 316 69 140 . 70 . 208 Projectiles . | . . . . . . . . . . . . Explosions 16 | . . . . . . . 16 . . . . Melee 787 | . . . . . 316 69 124 . 70 . 208 Knockbacks 1 | . . . 1 . . . . . . . . Impact 1 | . . . 1 . . . . . . . . Kinetic . | . . . . . . . . . . . . Secondary . | . . . . . . . . . . . . Self-Inflicted Damage 81 | . . . 21 . . . 60 . . . . Shots 2 | . . . . . . . 2 . . . . Rammed 19 | 1 7 . 9 . . . . . . 2 . Targets Rammed 20 | 1 8 . 9 . . . . . . 2 . Kicked . | . . . . . . . . . . . . Crushed 1 | . 1 . . . . . . . . . . Highest Temperature 318 | . 123 21 318 . 141 6 29 . 276 181 224 Average Temperature 74 | . 35 7 145 . 33 4 12 . 138 89 83 Received Heat Transfer 2335 | . 93 186 48 . 1035 . 542 35 18 90 288 Siege Activations . | . . . . . . . . . . . . Martial Activations . | . . . . . . . . . . . . Shielding Activations . | . . . . . . . . . . . . Robots Disrupted 3 | . . . . . . 1 . . . . 2 Combat Hostiles 2 | . . . . . . . . . . . 2 Robots Corrupted . | . . . . . . . . . . . . Combat Hostiles . | . . . . . . . . . . . . Parts Fried . | . . . . . . . . . . . . Impact Corruptions . | . . . . . . . . . . . . Robots Melted . | . . . . . . . . . . . . Combat Hostiles . | . . . . . . . . . . . . Parts Melted . | . . . . . . . . . . . . Heat Transferred 1450 | 25 325 950 150 . . . . . . . . Parts Sabotaged . | . . . . . . . . . . . . Parts Stolen . | . . . . . . . . . . . . Parts Stripped . | . . . . . . . . . . . . Power Chain Reactions . | . . . . . . . . . . . . Alert | -11 -10 -10 -9 -9 -6 -5 -5 -5 -5 -5 -4 ------- Run | Yrd Mat Sub Rec Scr Fac Fac Ext Cet Arc Hub Fac Maximum Alert Level 3 | . . . . . 1 . 3 2 1 1 . Low Security (%) 81 | 100 100 . 100 . 70 100 89 . . 44 100 Level 1 9 | . . . . . 29 . 1 . 100 55 . Level 2 8 | . . . . . . . 4 100 . . . Level 3 . | . . . . . . . 4 . . . . Level 4 . | . . . . . . . . . . . . Level 5 . | . . . . . . . . . . . . High Security . | . . . . . . . . . . . . Max Security . | . . . . . . . . . . . . Peak Influence 988 | 5 50 . 163 . 300 142 988 696 394 341 165 Initial 550 | . . . 103 . . 142 . 550 240 134 165 Average 112 | . 8 . 47 . 92 66 112 623 352 210 34 Influence Increases 4958 | 10 162 240 293 . 691 49 1884 360 224 385 660 Destroy 0b10 Robot/C 2280 | . 80 120 80 . 380 . 900 160 80 100 380 Destroy 0b10 Robot/NC 165 | 10 15 . 5 . 35 10 35 10 15 5 25 Destroy Leader 330 | . 20 . . . 100 2 104 . . 32 72 Allied During Kill 964 | . . . 14 . . . 513 144 95 132 66 Successful Hack 190 | . . . 14 . 22 10 85 . . 22 37 Select Force Hacks 260 | . 30 . 180 . . . . . . 50 . Disable Machine 120 | . . . . . 15 . 15 . 30 30 30 Destroy Structure 244 | . 2 . . . 4 12 112 46 4 14 50 Partial Spotted 30 | . . . . . . 15 15 . . . . Lose Combat Pursuer 375 | . 15 120 . . 135 . 105 . . . . Influence Decreases 4958 | 10 151 35 509 . 400 340 900 744 440 430 999 Entered New Map 1486 | . . 6 113 . . 149 . 434 360 250 174 Time Decay 2259 | 10 151 19 396 . 300 179 454 270 50 70 360 Lost Part 536 | . . 10 . . 100 2 130 20 10 10 254 Lost Ally 546 | . . . . . . 10 316 20 20 100 80 Purge Threat 131 | . . . . . . . . . . . 131 Squads Dispatched 33 | . 5 . . . 5 2 6 . . 4 11 Investigation 16 | . 4 . . . 1 1 4 . . 2 4 Extermination 6 | . . . . . 3 . . . . . 3 Reinforcement 6 | . 1 . . . 1 1 1 . . 1 1 Assault 1 | . . . . . . . 1 . . . . Garrison 4 | . . . . . . . . . . 1 3 Intercept . | . . . . . . . . . . . . Searches Triggered . | . . . . . . . . . . . . Construction Impeded 2 | . . . . . . . 1 . . . 1 Haulers Reinforced 1 | . . . . . . 1 . . . . . Active Scanning Responses . | . . . . . . . . . . . . Cargo Convoy Interrupts . | . . . . . . . . . . . . Stealth | -11 -10 -10 -9 -9 -6 -5 -5 -5 -5 -5 -4 --------- Run | Yrd Mat Sub Rec Scr Fac Fac Ext Cet Arc Hub Fac Distress Signals 7 | . 1 . . . . 1 1 2 . 1 1 Communications Jammed 1 | . . . . . . . . . . . 1 Distress Signals . | . . . . . . . . . . . . Times Spotted 174 | . 10 18 4 . 30 3 46 10 3 12 38 Peak Tracking Total 14 | . 2 2 1 . 6 3 6 5 2 11 14 Tactical Retreats 17 | . 1 3 . . 8 . 4 . . . 1 Traps | -11 -10 -10 -9 -9 -6 -5 -5 -5 -5 -5 -4 ------- Run | Yrd Mat Sub Rec Scr Fac Fac Ext Cet Arc Hub Fac Traps Triggered 11 | . 1 3 . . . . 6 . . . 1 Indirectly . | . . . . . . . . . . . . Trap Hack Attempts . | . . . . . . . . . . . . Triggered . | . . . . . . . . . . . . Disarmed . | . . . . . . . . . . . . Reprogrammed . | . . . . . . . . . . . . Reused . | . . . . . . . . . . . . Traps Extracted . | . . . . . . . . . . . . Installed . | . . . . . . . . . . . . Triggered . | . . . . . . . . . . . . Machines | -11 -10 -10 -9 -9 -6 -5 -5 -5 -5 -5 -4 ---------- Run | Yrd Mat Sub Rec Scr Fac Fac Ext Cet Arc Hub Fac Machines Disabled 12 | . . 2 . . 1 . 3 . 2 2 2 Max in Single Turn 1 | . . 1 . . 1 . . . . . 1 Garrison Access 3 | . . . . . 1 1 . . . . 1 Network Hub 1 | . . . . . . . . . . 1 . Machines Repaired . | . . . . . . . . . . . . Machines Dismantled . | . . . . . . . . . . . . Machines Sabotaged 1 | . . . . . . . . . . 1 . Overloaded Fab Kills . | . . . . . . . . . . . . Hacking | -11 -10 -10 -9 -9 -6 -5 -5 -5 -5 -5 -4 --------- Run | Yrd Mat Sub Rec Scr Fac Fac Ext Cet Arc Hub Fac Machines Accessed 64 | . 3 2 11 5 10 6 14 . . 5 8 Terminals 36 | . 1 . 5 . 5 4 13 . . 5 3 Fabricators 2 | . . . . . 2 . . . . . . Repair Stations 1 | . . . . . . 1 . . . . . Recycling Units 13 | . 2 . 6 . . . 1 . . . 4 Scanalyzers 2 | . . . . . 2 . . . . . . Garrison Access 3 | . . . . . 1 1 . . . . 1 Total Hacks 196 | . 9 6 32 15 27 11 37 . . 22 37 Successful 112 | . 7 6 20 15 9 4 20 . . 9 22 Failed 84 | . 2 . 12 . 18 7 17 . . 13 15 Catastrophic 18 | . 1 . . . 3 5 3 . . 4 2 Database Lockouts . | . . . . . . . . . . . . Manual 87 | . 6 . 14 . 13 7 16 1 . 15 15 Terminals 118 | . 3 . 18 . 10 8 36 . . 22 21 Fabricators 9 | . . . . . 9 . . . . . . Repair Stations 2 | . . . . . . 2 . . . . . Recycling Units 36 | . 6 . 14 . . . 1 . . . 15 Scanalyzers 4 | . . . . . 4 . . . . . . Garrison Access 6 | . . . . . 4 1 . . . . 1 Terminal Hacks 52 | . 1 6 3 15 . . 14 . . 6 7 Record 19 | . . 5 . 14 . . . . . . . Robot Schematic 1 | . . . . . . . 1 . . . . Prototype ID Bank 1 | . . . . . . . . . . 1 . Open Door 8 | . . . . 1 . . 7 . . . . Level Access Points 1 | . . . . . . . . . . 1 . Branch Access Points 1 | . . . . . . . . . . . 1 Emergency Access Points 1 | . . . . . . . . . . 1 . Machine Index 1 | . . . . . . . 1 . . . . Terminal Index 1 | . . . . . . . . . . . 1 Recycling Unit Index 1 | . . . . . . . 1 . . . . Alert Level 2 | . . . . . . . 1 . . . 1 Unreport Threat 1 | . . . . . . . . . . . 1 Locate Traps 1 | . . . . . . . . . . . 1 Reprogram Traps 1 | . . . . . . . 1 . . . . Registered Components 2 | . . . . . . . . . . 1 1 Zone Layout 9 | . 1 . 3 . . . 2 . . 2 1 Proto ID Catalog 1 | . . 1 . . . . . . . . . Fabricator Hacks 4 | . . . . . 4 . . . . . . Network Status 1 | . . . . . 1 . . . . . . Load Schematic 1 | . . . . . 1 . . . . . . Build 2 | . . . . . 2 . . . . . . Repair Station Hacks 2 | . . . . . . 2 . . . . . Scan Component 1 | . . . . . . 1 . . . . . Repair 1 | . . . . . . 1 . . . . . Recycling Unit Hacks 17 | . 3 . 7 . . . . . . . 7 Report Inventory 12 | . 2 . 6 . . . . . . . 4 Retrieve Matter 1 | . . . . . . . . . . . 1 Retrieve Components 4 | . 1 . 1 . . . . . . . 2 Scanalyzer 4 | . . . . . 4 . . . . . . Insert Component 2 | . . . . . 2 . . . . . . Analyze 2 | . . . . . 2 . . . . . . Garrison Access Hacks 3 | . . . . . 1 1 . . . . 1 Seal Access 3 | . . . . . 1 1 . . . . 1 Unauthorized Hacks 30 | . 3 . 10 . . 1 6 . . 3 7 Terminals 17 | . 1 . 4 . . 1 5 . . 3 3 Assimilate 1 | . . . . . . . 1 . . . . Botnet 15 | . 1 . 4 . . 1 4 . . 2 3 Sabotage 1 | . . . . . . . . . . 1 . Fabricators . | . . . . . . . . . . . . Repair Stations . | . . . . . . . . . . . . Recycling Units 13 | . 2 . 6 . . . 1 . . . 4 Reject 1 | . 1 . . . . . . . . . . Tunnel 7 | . 1 . 6 . . . . . . . . Fedlink 4 | . . . . . . . . . . . 4 Scrapoids 1 | . . . . . . . 1 . . . . Scanalyzers . | . . . . . . . . . . . . Garrison Access . | . . . . . . . . . . . . Data Cores Recovered . | . . . . . . . . . . . . Used . | . . . . . . . . . . . . Hacking Detections 40 | . 2 . 7 . 10 5 8 . . 3 5 Full Trace Events 8 | . 2 . 1 . 1 1 2 . . 1 . Feedback Events . | . . . . . . . . . . . . Feedback Blocked . | . . . . . . . . . . . . Robot Schematics Acquired 1 | . . . . . . . 1 . . . . Robots Built . | . . . . . . . . . . . . Authchips . | . . . . . . . . . . . . Time . | . . . . . . . . . . . . Total Robot Build Rating . | . . . . . . . . . . . . Part Schematics Acquired 2 | . . . . . 2 . . . . . . Parts Built 3 | . . . . . 3 . . . . . . Authchips . | . . . . . . . . . . . . Time 210 | . . . . . 210 . . . . . . Total Part Build Rating 19 | . . . . . 19 . . . . . . Parts Repaired 1 | . . . . . . 1 . . . . . Time 80 | . . . . . . 80 . . . . . Parts Recycled . | . . . . . . . . . . . . Recycled Matter . | . . . . . . . . . . . . Retrieved Matter . | . . . . . . . . . . . . Retrieved Components 22 | . 10 . 9 . . . . . . . 3 Parts Scanalyzed 2 | . . . . . 2 . . . . . . Part Schematics Acquired 2 | . . . . . 2 . . . . . . Parts Damaged . | . . . . . . . . . . . . Bothacking | -11 -10 -10 -9 -9 -6 -5 -5 -5 -5 -5 -4 ------------ Run | Yrd Mat Sub Rec Scr Fac Fac Ext Cet Arc Hub Fac Used RIF Installer . | . . . . . . . . . . . . Robots Hacked . | . . . . . . . . . . . . Non-combat . | . . . . . . . . . . . . Combat . | . . . . . . . . . . . . Robot Hacks Applied . | . . . . . . . . . . . . Relay Couplers Released . | . . . . . . . . . . . . Fabnet Peak Effective % . | . . . . . . . . . . . . Robots Rewired 37 | . . . 14 . . 1 21 . . . 1 Allies Hacked . | . . . . . . . . . . . . Hacks Repelled . | . . . . . . . . . . . . Allies | -11 -10 -10 -9 -9 -6 -5 -5 -5 -5 -5 -4 -------- Run | Yrd Mat Sub Rec Scr Fac Fac Ext Cet Arc Hub Fac Total Allies 57 | . . . 14 . . 1 36 5 . . 1 Largest Group 14 | . . . 14 . . 1 14 12 11 9 4 Highest-Rated Group 851 | . . . 159 . . 24 398 851 796 606 254 Highest-Rated Ally 159 | . . . 27 . . 24 159 159 159 96 96 Total Orders 1 | . . . 1 . . . . . . . . STAY 1 | . . . 1 . . . . . . . . Ally Attacks 432 | . . . 11 . . . 243 71 36 44 27 Total Damage 12111 | . . . 158 . . . 6510 2033 879 1471 1060 Kills 69 | . . . 3 . . . 41 10 4 6 5 Allies Corrupted 1 | . . . . . . . . . . 1 . Allies Melted . | . . . . . . . . . . . . Intel | -11 -10 -10 -9 -9 -6 -5 -5 -5 -5 -5 -4 ------- Run | Yrd Mat Sub Rec Scr Fac Fac Ext Cet Arc Hub Fac Active Infowar (turns) 8898 | 9 130 1688 1262 3258 569 345 30 . . . 1607 Sensors 1449 | . . . . . . 345 30 . . . 1074 Terrain 113 | 9 104 . . . . . . . . . . Structural 7144 | . 26 1688 1262 3258 569 29 29 . . . 283 Triangulation 470 | . . . . . . . . . . . 470 Jamming 1430 | . . . . . . . . . . . 1430 ECM 74 | . . . . . . . . . . . 74 Robot Analysis Total . | . . . . . . . . . . . . Derelict Logs Recovered 5 | . . . . 5 . . . . . . . Drone Launches . | . . . . . . . . . . . . Drone Recoveries . | . . . . . . . . . . . . Exploration | -11 -10 -10 -9 -9 -6 -5 -5 -5 -5 -5 -4 ------------- Run | Yrd Mat Sub Rec Scr Fac Fac Ext Cet Arc Hub Fac Turns Passed 13950 | 103 680 2304 1262 3542 1861 387 1291 597 108 154 1661 Spaces Moved 7561 | 47 352 1147 710 2090 1144 381 762 242 53 85 548 Core 102 | 1 . . . 86 . . . . . . 15 Treads 4472 | 46 352 1015 401 2004 . . . 105 53 85 411 Legs 1117 | . . . . . 755 . 208 137 . . 17 Wheels 1332 | . . 132 309 . 269 171 451 . . . . Hover 90 | . . . . . 90 . . . . . . Flight 448 | . . . . . 30 210 103 . . . 105 Fastest Speed 28 | 50 160 120 120 50 90 28 28 120 160 160 29 Average Speed 138 | 157 160 161 144 165 102 67 104 137 160 160 133 Slowest Speed 350 | 160 160 260 260 350 190 114 190 160 160 160 300 Overloaded Moves 45 | . . . . . . 20 25 . . . . Propulsion Burnouts . | . . . . . . . . . . . . Robots Hopped 6 | . . . . . . 1 1 . . . 4 Potential Cave-ins . | . . . . . . . . . . . . Cave-ins Triggered . | . . . . . . . . . . . . Exploration Rate (%) 49 | 4 72 77 95 90 26 10 74 56 66 13 13 Regions Visited 11 Branch Regions 7 Pre-discovered Areas 9 | . 1 . 6 1 . . . . . . 1 Known Exits Taken 5 | . . . . . . 1 1 1 1 1 . Unknown Exits Taken 6 | 1 1 1 1 1 1 . . . . . . Scrap Searched 8 | . . 4 . 4 . . . . . . . Spaces Dug 25 | . . . . . 4 6 1 . . 4 10 Terrain Destroyed 104 | . . . . . 4 6 27 45 . 4 18 Melee 25 | . . . . . 4 6 1 . . 4 10 Projectile 5 | . . . . . . . . . . . 5 AOE 74 | . . . . . . . 26 45 . . 3 Terrain Rammed . | . . . . . . . . . . . . Walls Destroyed . | . . . . . . . . . . . . Machines Disabled . | . . . . . . . . . . . . Actions | -11 -10 -10 -9 -9 -6 -5 -5 -5 -5 -5 -4 --------- Run | Yrd Mat Sub Rec Scr Fac Fac Ext Cet Arc Hub Fac Total 10429 | 62 427 1444 925 2206 1687 494 1163 503 73 97 1348 Wait 1710 | . 41 193 12 . 324 95 130 238 13 6 658 Move 7539 | 47 351 1146 709 2089 1143 378 759 241 52 84 540 Hop 6 | . . . . . . 1 1 . . . 4 Pick Up 112 | 3 3 13 2 47 25 . 5 4 1 . 9 Fast Attach 67 | 7 . 1 . 7 19 3 10 3 . . 17 Attach 50 | . . 5 1 1 15 . 11 2 2 . 13 Detach 29 | . . . . 8 8 . 5 1 1 . 6 Swap 50 | . 4 12 2 . 9 3 6 1 1 1 11 Drop 95 | . 1 4 1 54 23 . 3 7 . . 2 Fire 135 | 5 18 70 7 . . . 15 6 . . 14 Melee 271 | . . . . . 121 11 64 . 3 4 68 Ram 4 | . . . 4 . . . . . . . . Kick . | . . . . . . . . . . . . Crush 15 | . 8 . 5 . . . . . . 2 . Escape Stasis 35 | . . . . . . . 35 . . . . Rewire 310 | . 1 . 182 . . 3 118 . . . 6 Trap . | . . . . . . . . . . . . Miscellaneous 1 | . . . . . . . 1 . . . . Route ------- -11/Scrapyard -10/Materials (discovered 5 exits: [*Mat x3] / [*Min] / *Sub) -10/Subcaves (discovered 3 exits: [*Mat x2] / *Rec) -9/Recycling (discovered 2 exits: [*Fac] / *Scr) -9/Scraptown (discovered 2 exits: *Fac x2) -6/Factory (discovered 2 exits: *Fac / *Low) -5/Factory (discovered 2 exits: *Fac / *Ext) -5/Extension (discovered 2 exits: *Fac / *Cet) -5/Cetus (discovered 2 exits: *Fac / *Arc) -5/Archives -5/Hub_04(d) (discovered 4 exits: *Fac x4) -4/Factory (discovered 3 exits: *Res / Upp x2) History --------- Turn | Location | Event 22 | -11/Scrapyard | Discovered new exit (range 16) 104 | -11/Scrapyard | Entered Materials 105 | -10/Materials | Met a group of wandering Federalists 224 | -10/Materials | Discovered new exit (range 7) 295 | -10/Materials | Lost 4 allies 305 | -10/Materials | Build established: Mutant 521 | -10/Materials | Discovered new exit (range 10) 556 | -10/Materials | Discovered new exit (range 15) 582 | -10/Materials | Discovered new exit (range 15) 749 | -10/Materials | Discovered new exit (range 9) 784 | -10/Materials | Entered Subcaves 785 | -10/Subcaves | Approached by a straggling Scientist 854 | -10/Subcaves | Visited 4L-MR0's lab 869 | -10/Subcaves | Found Prototype Leg 874 | -10/Subcaves | Identified Arachnoskeleton 1295 | -10/Subcaves | Discovered new exit (range 12) 1423 | -10/Subcaves | Discovered new exit (range 10) 2888 | -10/Subcaves | Visited Clippyterm 2892 | -10/Subcaves | Learned Factory fabricator intel 2892 | -10/Subcaves | Learned Factory trap positions 2986 | -10/Subcaves | Core integrity fell below 50% 3018 | -10/Subcaves | Discovered new exit (range 10) 3088 | -10/Subcaves | Entered Recycling 3405 | -9/Recycling | Build established: Scavenger-Mutant 3807 | -9/Recycling | Build established: Commander-Mutant 3926 | -9/Recycling | Scanned before Scraplab entrance 3966 | -9/Recycling | Discovered new exit (range 15) 4330 | -9/Recycling | Discovered new exit (range 11) 4335 | -9/Recycling | Entered Scraplab 4350 | -9/Recycling | Entered Scraptown 4451 | -9/Scraptown | Visited UFD Registry 4451 | -9/Scraptown | Registered with UFD as "Nanomind" 4464 | -9/Scraptown | Visited Red Mages 4534 | -9/Scraptown | Visited Science Testing Area 4571 | -9/Scraptown | Visited Shadow of the Wyrm 4611 | -9/Scraptown | Scanned Subdweller tech in exchange for log data 4614 | -9/Scraptown | Learned location of Zion (-7) 4616 | -9/Scraptown | Learned location of 1 exit from Research 4618 | -9/Scraptown | Learned location of 1 exit from Factory 4619 | -9/Scraptown | Learned Factory trap positions 4621 | -9/Scraptown | Learned Research interactive machine intel 4634 | -9/Scraptown | Heard Great Nut preacher, LISTEN AND RECITE! 4636 | -9/Scraptown | Build established: Scavenger-Mutant 4637 | -9/Scraptown | Discovered new exit (range 11) 5083 | -9/Scraptown | Build established: Mutant 5576 | -9/Scraptown | Visited Symbiants 5611 | -9/Scraptown | Visited Assassins FH 5630 | -9/Scraptown | Visited Fellowship of the Rings 5654 | -9/Scraptown | Visited Comm Corps 5920 | -9/Scraptown | Visited Junk Repository 6027 | -9/Scraptown | Visited A0-MCA Data Center 6037 | -9/Scraptown | Given a C+ rating by A0-MCA 6043 | -9/Scraptown | Found A0-MCA's Component Scanner 6081 | -9/Scraptown | Visited Junk Repository 6265 | -9/Scraptown | Visited Supply Room 6324 | -9/Scraptown | Visited Observation Area 6383 | -9/Scraptown | Visited Abandonware Association 6402 | -9/Scraptown | Learned abandonware demo "HACKBUD.EXE" 6402 | -9/Scraptown | Learned abandonware demo "TRNCOAT.EXE" 6437 | -9/Scraptown | Visited Curators Association 6517 | -9/Scraptown | Visited Scrap Suit Storage 6569 | -9/Scraptown | Visited Scrapoid Pod Storage 6577 | -9/Scraptown | Found Scrapoid Pod 6655 | -9/Scraptown | Visited Sword Containment 7086 | -9/Scraptown | Delivered Scrap Shield to a Scientist 7736 | -9/Scraptown | Met Optimus 7736 | -9/Scraptown | Accepted into 0bPrime 7873 | -9/Scraptown | Discovered new exit (range 5) 7892 | -9/Scraptown | Entered Factory 7892 | -6/Factory | Evolved 8 slots: Power x1, Propulsion x2, Utility x5 7893 | -6/Factory | Identified exit to Lower Caves 7894 | -6/Factory | Loaded intel: 101 trap records 7894 | -6/Factory | Attached Arachnoskeleton, gained temporary slots: Propulsion x3 7895 | -6/Factory | Loaded intel: 6 fabricator locations 8185 | -6/Factory | Build established: Hacker-Mutant 8540 | -6/Factory | Fabricated Cld. Cesium-ion Thruster? 9065 | -6/Factory | Core integrity fell below 50% 9170 | -6/Factory | Lost 5 parts (2n3u) 9378 | -6/Factory | Fabricated Centrium Wheel (x2) 9400 | -6/Factory | Discovered new exit (range 11) 9753 | -6/Factory | Entered another Factory area 9753 | -5/Factory | Evolved 2 slots: Propulsion x1, Utility x1 9754 | -5/Factory | Loaded intel: 107 trap records 10077 | -5/Factory | Repaired Cld. Cesium-ion Thruster 10137 | -5/Factory | Discovered new exit (range 9) 10138 | -5/Factory | Discovered new exit (range 11) 10140 | -5/Factory | Identified exit to Extension 10140 | -5/Factory | Entered Extension 10261 | -5/Extension | Disrupted transfer network 10447 | -5/Extension | Rescued a captive Derelict 10448 | -5/Extension | Rescued a captive Derelict 10534 | -5/Extension | Lost 3 allies 10611 | -5/Extension | Lost 4 parts (1p1n1u1w) 10717 | -5/Extension | Rescued a captive Derelict 10799 | -5/Extension | Spotted B-75 Beast 10811 | -5/Extension | Spotted B-75 Beast 10839 | -5/Extension | Rescued a captive Derelict 10846 | -5/Extension | Lost 4 parts (1p2u1w) 10846 | -5/Extension | Rescued a captive Derelict 10847 | -5/Extension | Build established: Commander-Mutant 10926 | -5/Extension | Lost 3 parts (3u) 11000 | -5/Extension | Rescued a captive Derelict 11001 | -5/Extension | Rescued a captive Derelict 11022 | -5/Extension | Rescued A7 11277 | -5/Extension | Scrapoid reinforcements arrived 11319 | -5/Extension | Rescued a captive Derelict 11327 | -5/Extension | Build established: Scavenger-Mutant 11340 | -5/Extension | First assault squad dispatched 11399 | -5/Extension | Discovered new exit (range 10) 11400 | -5/Extension | Discovered new exit (range 6) 11405 | -5/Extension | Identified exit to Cetus 11431 | -5/Extension | Entered Cetus 11431 | -5/Cetus | Accompanied by 7 allies (A7) 11436 | -5/Cetus | Acquired a Cetus Manufacturing Module code from A7 11448 | -5/Cetus | Spotted Cetus Guard 11449 | -5/Cetus | Spotted Cetus Guard 11451 | -5/Cetus | Spotted Cetus Guard 11451 | -5/Cetus | Spotted Cetus Guard 11461 | -5/Cetus | Allies destroyed Cetus Guard 11467 | -5/Cetus | Allies destroyed Cetus Guard 11472 | -5/Cetus | Allies destroyed Cetus Guard 11472 | -5/Cetus | Allies destroyed Cetus Guard 11551 | -5/Cetus | Started Cetus Manufacturing Module 11576 | -5/Cetus | Manufactured an Enhanced Grunt 11601 | -5/Cetus | Manufactured an Enhanced Grunt 11626 | -5/Cetus | Manufactured an Enhanced Grunt 11651 | -5/Cetus | Manufactured an Enhanced Grunt 11676 | -5/Cetus | Manufactured an Enhanced Grunt 11719 | -5/Cetus | Discovered new exit (range 16) 11784 | -5/Cetus | Spotted Cetus Guard 11784 | -5/Cetus | Spotted Cetus Guard 11785 | -5/Cetus | Spotted Cetus Guard 11785 | -5/Cetus | Spotted Cetus Guard 11791 | -5/Cetus | Allies destroyed Cetus Guard 11801 | -5/Cetus | Allies destroyed Cetus Guard 11803 | -5/Cetus | Allies destroyed Cetus Guard 11805 | -5/Cetus | Allies destroyed Cetus Guard 11811 | -5/Cetus | Discovered new exit (range 16) 11817 | -5/Cetus | Met Revision 17 11839 | -5/Cetus | System corruption reached 10% 11916 | -5/Cetus | Identified exit to Archives 11960 | -5/Cetus | Build established: Commander-Mutant 11965 | -5/Cetus | Found Scrap Suit 12028 | -5/Cetus | Entered Archives 12028 | -5/Archives | Accompanied by 11 allies (A7) 12090 | -5/Archives | Discovered new exit (range 16) 12124 | -5/Archives | Identified exit to Hub_04(d) 12136 | -5/Archives | Entered Hub_04(d) 12136 | -5/Hub_04(d) | Accompanied by 9 allies 12167 | -5/Hub_04(d) | Identified exit to Factory 12270 | -5/Hub_04(d) | Network Hub disabled 12273 | -5/Hub_04(d) | Spotted Lightning 12274 | -5/Hub_04(d) | Spotted Lightning 12276 | -5/Hub_04(d) | Spotted Lightning 12278 | -5/Hub_04(d) | Garrison activated, responded to threat 12290 | -5/Hub_04(d) | Entered Factory 12290 | -4/Factory | Accompanied by 3 allies 12290 | -4/Factory | Evolved 2 slots: Utility x2 12319 | -4/Factory | Lost 5 allies 12457 | -4/Factory | Identified exit to Upper Caves 12500 | -4/Factory | Loaded intel: 8 recycling unit locations 12568 | -4/Factory | Discovered new exit (range 4) 12572 | -4/Factory | Build established: Scavenger-Mutant 12573 | -4/Factory | Identified exit to Research 12610 | -4/Factory | Learned location of Protoforge (-2) 12647 | -4/Factory | Garrison activated, responded to threat 12735 | -4/Factory | Lost 4 allies 13386 | -4/Factory | Spotted B-86 Titan 13773 | -4/Factory | Lost 7 parts (1p3n3u) 13828 | -4/Factory | Lost 3 parts (1p1n1w) 13919 | -4/Factory | Core integrity fell below 50% 13920 | -4/Factory | Found Prototype Processor 13920 | -4/Factory | Identified Exp. Signal Interpreter 13947 | -4/Factory | Core integrity fell below 20% 13951 | -4/Factory | Destroyed by G-73 Enforcer with Heavy Laser Last Messages --------------- Terminal linked with 2 systems. Awaiting botnet instructions. >>Layout(Zone) Retrieving Zone 7A layout... Downloaded map data. >>Traps(Locate) Found 11 traps in 2 arrays: 5x Tesla Bomb Trap 6x Segregator Trap Map updated. >>Alert(Check) Current Alert Level: Low Security 13941_ Assembly Bed disabled. 13942_ Autogun destroyed. 13942_ VTOL Module destroyed. 13943_ Autogun destroyed. 13943_ Imp. Hacking Suite destroyed. 13943_ Imp. System Shield destroyed. 13945_ VTOL Module destroyed. 13948_ Structural Scanner destroyed. Map ----- +----------------------------------------------------+ | | | ?????????????????????????????????????????????????? | | ?????????????????????????????????????????????????? | | ?????????????????????????????????????????????????? | | ?????????????????????????????????????????????????? | | ?????????????????????????????????????????????????? | | ?????????????????????????????????????????????????? | | ?????????????????????????????????????????????????? | | ?????????????????????????????????????????????????? | | ?????????????????????????????????????????????????? | | ?????????????????????????????????????????????????? | | ?????????????????????????????????????????????????? | | ?????????????????????????????????????????????????? | | ?????????????????????????????????????????????????? | | ?????????????????????????????????????????????????? | | ?????????????????????????????????????????????????? | | ?????????????????????????????????????????????????? | | ?????????????????????????????????????????????????? | | ?????????????????????????????????????????????????? | | ?????????????????????????????????????????????????? | | ?????????????????????????????????????????????????? | | ?????????????????????????????????????????????????? | | ?????????????????????????????????????????????????? | | # #?????????# ???????????????????????????? | | #####+####################+#######???????????????? | | k g @ w ????????? | | g g g ????????? | | gg ????????? | | g g g ?????????? | | ?????????? | | ###+######+########### T#############??????????? | | # # #??####??????????????????????? | | # """""" # #????????????????????????????? | | ^^# """""" # #????????????????????????????? | | # """""" # #????????????????????????????? | | # """"" # #????????????????????????????? | | # # ! #????????????????????????????? | | # # #????????????????????????????? | | # ""T"" # #????????????????????????????? | | # """"" !# #????????????????????????????? | | ## #### # ########????????????????????????????? | | # #????????????????????????????????? | | #????????????????????????????????? | | ##???????????????????????????????? | | #???????????????????????????????? | | ##???????????????????????????????? | | ##??##???????????????????????????? | | % #### ???????????????????????????? | | [[ # ???????????????????????????? | | [ % ### # ???????????????????????????? | +----------------------------------------------------+ Best States ------------- Heat Dissipation 43 Energy Generation 41 Energy Capacity 575 Matter Stores 300 Matter Capacity 300 Sight Range 16 Robot Scan Range 16 Terrain Scan Range 16 Terrain Scan Density 10 ECM Strength 2 Jamming Range 16 Additional Mass Support 9 Armor Coverage 600 Propulsion Shielding 33 Utility Shielding 33 Melee Speed Boost 40 Phase Shifting 10 Evasion (%) 63 Targeting Accuracy 6 Melee Accuracy 8 Recoil Reduction 4 Offensive Hacking 12 Defensive Hacking 24 Item Schematics ----------------- Cld. VTOL Module | -6/Factory | Scanalyzed Cld. Cesium-ion Thruster | -6/Factory | Scanalyzed Robot Schematics ------------------ H-66 Slayer | -5/Extension | Hacked Fabricated ------------ Cld. Cesium-ion Thruster | x1 | -6/Factory Centrium Wheel | x2 | -6/Factory | Preloaded Repaired ---------- Cld. Cesium-ion Thruster | 42% | -5/Factory Alien Tech Used ----------------- None Achievements -------------- None Challenges ------------ None Game ------ Seed ImpactShockOptics Manual? 0 Play Time 02:10:16 Cumulative 131.8 hours Start 2025.06.26 @ 15:47:17 End 2025.06.27 @ 17:43:02 Sessions 3 Manual Loads 0 Difficulty Rogue Special Mode None Game No. 142 Rogue 142 Adventurer 0 Explorer 0 Win Type - Total 2 Types 1/0/0/1/0/0/0/0/0/0 Lore% 62 Gallery% 57 Achievement% 51 Wizard Run 0 Options --------- Layout 1 ASCII 0 Keyboard 1 Movement Numpad Keybinds 0 Fullscreen 1 Font 32/SmallcapsGlow Map View 77x35 Zoom Use 0% Tactical HUD 1 Map Filters NONE Filters NONE Steam 1 RUN: 83f56596-3a53-4557-b2a9-21e4bb77510b